bitfinex-derivatives/quotes_ETHF0:USTF0_20240924
["timestamp","ask_amount","ask_price","bid_price","bid_amount"]
[1727176237983,0.37841,2642.8,2642.5,0.7411]
[1727176238486,2.66,2642.7,2642.5,0.7411]
[1727176238689,2.66,2642.7,2642.5,0.3788]
[1727176238990,0.37843,2642.6,2642.5,0.3788]
[1727176239689,3.03842,2642.7,2642.5,0.3788]
[1727176239889,0.37843,2642.6,2642.5,0.3788]
[1727176240297,0.94601,2642.8,2642.5,4.1628]
[1727176240298,0.3784,2642.8,2642.5,4.1628]
[1727176240596,0.3784,2642.8,2642.5,0.3788]
[1727176241181,0.37843,2642.7,2642.5,0.3788]
[1727176241388,0.37841,2642.8,2642.5,0.3788]
[1727176241582,3.03842,2642.7,2642.5,0.3788]
[1727176242091,2.66,2642.7,2642.5,0.3788]
[1727176242995,0.37843,2642.6,2642.5,0.3788]
[1727176243288,0.37844,2642.6,2642.3,0.3684]
[1727176243491,2.66,2642.5,2642.3,0.3684]
[1727176244782,3.03844,2642.5,2642.3,0.3684]
[1727176245186,2.66,2642.5,2642.3,0.3684]
[1727176245892,3.03846,2642.5,2642.3,0.3684]
[1727176246090,0.37846,2642.4,2642.3,0.3684]
[1727176246884,0.37846,2642.4,2642.0,1.37082927]
[1727176246885,0.94615,2642.4,2642.0,1.37082927]
[1727176247089,0.94615,2642.4,2642.0,0.3809]
[1727176247090,0.37849,2642.2,2642.0,0.3809]
[1727176248191,0.37852,2642.0,2641.9,4.19772927]
[1727176248392,2.66,2642.0,2641.8,0.3814]
[1727176248699,3.03852,2642.0,2641.8,0.3814]
[1727176251192,0.37853,2641.9,2641.8,0.3814]
[1727176251389,3.03852,2642.0,2641.8,0.3814]
[1727176251594,0.37853,2641.9,2641.8,0.3814]
[1727176251899,3.42242,2642.0,2641.8,4.167]
[1727176252096,3.42242,2642.0,2641.8,0.3814]
[1727176253099,0.37853,2641.9,2641.8,0.3814]
[1727176253593,0.37853,2641.9,2641.8,4.167]
[1727176254897,0.37854,2641.8,2641.7,0.3806]
[1727176257892,1.33021,2642.0,2641.7,0.3806]
[1727176258198,0.37854,2641.9,2641.7,0.3806]
[1727176258394,0.37853,2641.9,2641.7,0.3806]
[1727176258892,0.37854,2641.8,2641.7,0.3806]
[1727176259087,0.37854,2641.9,2641.7,0.3806]
[1727176259287,0.37854,2641.9,2641.8,0.98924052]
[1727176262696,3.98487,2641.9,2641.8,0.98924052]
[1727176263699,0.37854,2641.8,2641.7,0.98924052]
[1727176264191,0.37854,2641.8,2641.5,5.07232538]
[1727176264392,0.37854,2641.8,2641.6,2.72615694]
[1727176264592,0.37854,2641.8,2641.5,5.07231538]
[1727176264795,0.37854,2641.8,2641.6,3.10472742]
[1727176265004,0.37854,2641.8,2641.6,0.37857]
[1727176265199,0.37854,2641.8,2641.7,0.3978]
[1727176265407,1.32491,2641.8,2641.7,0.3978]
[1727176266101,0.37854,2641.8,2641.7,0.3978]
[1727176268401,1.32491,2641.8,2641.7,0.3978]
[1727176268599,0.37859,2641.5,2641.4,1.48593538]
[1727176268903,0.37859,2641.5,2641.4,2.72623327]
[1727176269099,0.37859,2641.5,2641.4,5.02589789]
[1727176269600,0.37858,2641.6,2641.4,6.89043327]
[1727176269804,0.37858,2641.6,2641.5,1.24046791]
[1727176270194,0.37858,2641.6,2641.5,6.51200329]
[1727176270607,0.37858,2641.6,2641.5,2.72648506]
[1727176271297,0.37858,2641.6,2641.5,2.72646282]
[1727176272199,0.37858,2641.6,2641.5,6.51206282]
[1727176273400,2.66,2641.9,2641.5,5.02612744]
[1727176273608,0.37855,2641.8,2641.7,1.48541635]
[1727176273793,0.37853,2641.9,2641.7,3.10449379]
[1727176274001,0.37853,2641.9,2641.8,0.3644]
[1727176274509,0.37853,2641.9,2641.8,1.35462231]
[1727176274809,0.37853,2641.9,2641.8,1.73162231]
[1727176275713,0.37853,2641.9,2641.8,2.11016231]
[1727176276006,0.37853,2641.9,2641.8,1.73162231]
[1727176276207,0.3839,2642.0,2641.8,5.89575231]
[1727176276408,0.37853,2641.9,2641.8,1.73162231]
[1727176276910,0.37853,2641.9,2641.8,5.51722231]
[1727176277209,0.37853,2641.9,2641.8,5.51759713]
[1727176278009,0.37853,2641.9,2641.8,5.89613713]
[1727176278207,0.37853,2641.9,2641.8,5.51759713]
[1727176279094,0.37853,2641.9,2641.8,5.51772886]
[1727176279300,0.37853,2641.9,2641.8,4.527]
[1727176279801,0.37853,2641.9,2641.8,5.5177779]
[1727176280102,0.37853,2641.9,2641.8,1.7321779]
[1727176280901,0.37853,2641.9,2641.8,1.73221129]
[1727176281103,0.37853,2641.9,2641.8,3.46634229]
[1727176281908,3.99021,2642.0,2641.8,3.46634229]
[1727176281909,0.3839,2642.0,2641.8,3.46634229]
[1727176282203,0.37853,2641.9,2641.8,2.22681635]
[1727176282406,0.37853,2641.9,2641.8,3.4663367]
[1727176283614,0.37853,2641.9,2641.8,3.46773147]
[1727176284217,0.37853,2641.9,2641.8,3.46773597]
[1727176285417,0.37853,2641.9,2641.8,1.98174764]
[1727176285615,0.37853,2641.9,2641.8,3.46903492]
[1727176286113,5.11046,2641.9,2641.8,2.72763492]
[1727176286311,5.11046,2641.9,2641.8,1.24034764]
[1727176286708,0.94637,2641.8,2641.6,1.48728728]
[1727176287009,4.38181,2641.8,2641.7,1.24076699]
[1727176287414,4.38181,2641.8,2641.7,2.72805427]
[1727176288213,4.38181,2641.8,2641.7,3.10661427]
[1727176288214,0.37854,2641.8,2641.7,3.10661427]
[1727176288407,0.37854,2641.8,2641.7,1.61932699]
[1727176289019,0.37854,2641.8,2641.7,1.24076699]
[1727176289620,0.37854,2641.8,2641.7,1.61932699]
[1727176290115,0.37854,2641.8,2641.7,3.10766038]
[1727176290308,0.37854,2641.8,2641.7,3.10835942]
[1727176290505,1.85372063,2641.8,2641.7,3.10835942]
[1727176291123,1.47518063,2641.9,2641.7,3.10835942]
[1727176291319,1.85371063,2641.9,2641.8,1.24146603]
[1727176291622,0.37853,2641.9,2641.8,1.24146603]
[1727176292009,1.859193,2641.9,2641.8,1.24146603]
[1727176292205,1.859193,2641.9,2641.8,2.72979942]
[1727176292407,0.37853,2641.9,2641.8,2.72979942]
[1727176293320,0.37853,2641.9,2641.8,3.24789147]
[1727176293819,0.37853,2641.9,2641.8,3.76598983]
[1727176294319,0.37853,2641.9,2641.8,4.14459383]
[1727176294616,0.37853,2641.9,2641.8,4.14632717]
[1727176294814,0.37853,2641.9,2641.8,4.07458622]
[1727176295010,0.37853,2641.9,2641.8,4.52093672]
[1727176295207,0.37853,2641.9,2641.8,4.52216672]
[1727176295620,0.37853,2641.9,2641.8,4.14362672]
[1727176295815,0.37853,2641.9,2641.8,4.14363108]
[1727176296116,0.76243,2642.0,2641.8,4.14363108]
[1727176296416,2.2441586,2642.0,2641.9,3.03275546]
[1727176296625,2.2441586,2642.0,2641.9,3.43115546]
[1727176296815,2.2441586,2642.0,2641.9,2.46664552]
[1727176297018,2.2441586,2642.0,2641.9,2.9848182]
[1727176297213,2.2441586,2642.0,2641.9,2.9848288]
[1727176298418,0.76243,2642.0,2641.9,3.3633588]
[1727176299221,0.76243,2642.0,2641.9,2.39882603]
[1727176299521,0.3839,2642.0,2641.9,2.39882603]
[1727176299719,1.4817286,2642.1,2642.0,0.37852]
[1727176299915,1.8601886,2642.4,2642.3,0.37847]
[1727176300115,1.8601886,2642.4,2642.3,1.24244801]
[1727176300313,0.37846,2642.4,2642.3,1.24244801]
[1727176300517,0.37846,2642.4,2642.3,1.60964801]
[1727176300715,1.8601786,2642.5,2642.3,2.35331801]
[1727176300924,1.8601786,2642.5,2642.4,1.24244801]
[1727176301220,1.8601786,2642.5,2642.4,1.63644801]
[1727176301421,2.2524686,2642.6,2642.4,2.01490801]
[1727176301622,2.2524686,2642.6,2642.5,1.24244801]
[1727176301825,0.77074,2642.6,2642.5,1.24244801]
[1727176302026,2.2524686,2642.6,2642.5,1.24244801]
[1727176302223,0.77074,2642.6,2642.5,1.24244801]
[1727176302420,0.3923,2642.6,2642.5,1.62088801]
[1727176302621,0.3923,2642.6,2642.5,1.24244801]
[1727176302622,0.77073,2642.6,2642.5,1.24244801]
[1727176303119,2.2524586,2642.6,2642.5,2.73060004]
[1727176303313,0.77073,2642.6,2642.5,2.73060004]
[1727176303518,1.8601486,2642.7,2642.5,3.10904004]
[1727176303817,0.37842,2642.7,2642.6,2.73060004]
[1727176304020,2.24590486,2642.8,2642.6,3.10903004]
[1727176304320,2.24589486,2642.8,2642.7,1.24244801]
[1727176304526,1.86749486,2642.8,2642.7,1.24044084]
[1727176304718,2.24590486,2642.8,2642.7,1.24044084]
[1727176304915,0.3873,2642.8,2642.7,1.61952345]
[1727176305115,2.25239486,2642.9,2642.7,1.61952345]
[1727176305322,2.25239486,2642.9,2642.7,0.75751]
[1727176306023,2.25239486,2642.9,2642.7,0.3791]
[1727176306323,0.7722,2642.9,2642.7,0.3791]
[1727176306918,0.77219,2642.9,2642.7,0.3791]
[1727176307318,0.77219,2642.9,2642.8,0.99064153]
[1727176307518,0.77219,2642.9,2642.7,0.3791]
[1727176308427,0.3784,2642.8,2642.7,0.3791]
[1727176308626,0.7722,2642.9,2642.7,0.3791]
[1727176308926,0.7722,2642.9,2642.8,0.99038948]
[1727176309125,3.4322,2642.9,2642.8,0.99038948]
[1727176309331,0.94601,2642.8,2642.6,0.99038948]
[1727176309534,2.66,2642.7,2642.6,0.99038948]
[1727176309833,3.42951,2642.7,2642.6,0.99038948]
[1727176310220,0.76951,2642.7,2642.6,0.99038948]
[1727176310420,3.0538,2642.9,2642.4,0.77245]
[1727176310421,0.37843,2642.6,2642.4,0.77245]
[1727176310717,0.37843,2642.6,2642.4,0.394]
[1727176311433,1.48019486,2642.5,2642.4,0.394]
[1727176313127,1.85862486,2642.6,2642.4,0.394]
[1727176313920,0.37843,2642.6,2642.5,3.2078]
[1727176316934,0.37843,2642.6,2642.4,0.394]
[1727176316935,0.37844,2642.5,2642.4,0.394]
[1727176319432,1.84299486,2642.6,2642.4,1.63253638]
[1727176319433,0.74124,2642.6,2642.4,1.63253638]
[1727176319738,0.74124,2642.6,2642.4,0.394]
[1727176320237,0.37844,2642.5,2642.4,0.394]
[1727176320435,0.37844,2642.5,2642.4,1.6325212]
[1727176320633,0.37844,2642.5,2642.2,4.69554462]
[1727176320634,1.32466,2642.3,2642.2,1.48774462]
[1727176320832,4.53249,2642.3,2642.2,0.22904242]
[1727176321135,0.94631,2642.0,2641.6,6.08064462]
[1727176321434,0.94631,2642.0,2641.7,1.23558269]
[1727176321435,0.37855,2641.8,2641.7,1.23558269]
[1727176321640,0.74854,2641.9,2641.7,1.23558269]
[1727176321831,0.74853,2641.9,2641.6,2.23321462]
[1727176322136,0.74853,2641.9,2641.7,1.235494]
[1727176322339,0.74853,2641.9,2641.6,2.23321462]
[1727176322531,0.74853,2641.9,2641.7,1.235536]
[1727176322833,0.74853,2641.9,2641.6,2.23321462]
[1727176323136,0.74853,2641.9,2641.7,1.23552893]
[1727176323336,0.74853,2641.9,2641.6,1.85464462]
[1727176323530,0.74853,2641.9,2641.7,1.23552207]
[1727176323725,0.3821,2642.2,2641.8,4.44327743]
[1727176323932,0.3821,2642.2,2642.1,3.2078]
[1727176324136,0.76059,2642.2,2642.0,2.66]
[1727176324342,0.76059,2642.2,2642.1,1.61148181]
[1727176324639,0.3821,2642.2,2642.1,1.61148249]
[1727176324933,0.3821,2642.2,2642.1,0.3761]
[1727176327439,0.74578,2642.3,2642.1,0.3761]
[1727176327736,0.3673,2642.3,2642.1,0.7546]
[1727176328432,0.74587,2642.4,2642.1,0.3761]
[1727176328946,0.37848,2642.3,2642.1,0.3761]
[1727176329638,0.3674,2642.4,2642.1,0.7546]
[1727176329828,0.37847,2642.3,2642.1,0.3761]
[1727176330024,0.37847,2642.3,2642.1,0.7546]
[1727176330441,0.74587,2642.4,2642.1,0.7546]
[1727176330738,0.37847,2642.3,2642.1,0.3761]
[1727176331929,0.3674,2642.4,2642.1,0.3761]
[1727176332128,0.74587,2642.4,2642.1,0.7546]
[1727176332327,0.76383,2642.6,2642.3,3.58627]
[1727176332536,0.76383,2642.6,2642.4,3.4001]
[1727176332729,0.3854,2642.6,2642.4,3.4001]
[1727176332936,0.3854,2642.6,2642.5,0.3644]
[1727176333827,0.76383,2642.6,2642.5,0.3644]
[1727176334529,0.76383,2642.6,2642.5,1.60023503]
[1727176337432,0.76383,2642.6,2642.5,0.3644]
[1727176337628,0.76383,2642.6,2642.5,1.6005083]
[1727176338039,0.3854,2642.6,2642.5,1.6005083]
[1727176338237,0.3694,2642.8,2642.5,6.87225292]
[1727176338439,0.3784,2642.8,2642.7,1.48774462]
[1727176338646,0.3784,2642.8,2642.7,1.2361083]
[1727176339634,0.3784,2642.8,2642.7,2.72385292]
[1727176339831,0.3967,2642.9,2642.7,2.72385292]
[1727176339832,0.77509,2642.9,2642.7,2.72385292]
[1727176340039,0.77509,2642.9,2642.8,1.2361083]
[1727176341048,1.72106,2642.9,2642.8,1.2361083]
[1727176341250,1.72106,2642.9,2642.6,1.48774462]
[1727176341251,0.37841,2642.8,2642.6,1.48774462]
[1727176341448,0.3784,2642.8,2642.7,1.23620769]
[1727176341647,0.37842,2642.7,2642.5,0.74284]
[1727176341943,1.47788403,2642.7,2642.5,0.74284]
[1727176342143,1.85630403,2642.7,2642.5,0.3644]
[1727176346051,0.37843,2642.6,2642.5,0.3644]
[1727176346355,1.85630403,2642.7,2642.5,0.3644]
[1727176346545,0.37843,2642.6,2642.5,0.3644]
[1727176346852,1.85630403,2642.7,2642.5,0.74284]
[1727176347045,1.85630403,2642.7,2642.5,0.74283]
[1727176348640,1.85630403,2642.7,2642.6,1.23657768]
[1727176348641,0.37842,2642.7,2642.6,1.23657768]
[1727176349350,0.3967,2642.9,2642.7,0.37841]
[1727176349551,0.3967,2642.9,2642.8,1.23657768]
[1727176349552,0.77509,2642.9,2642.8,1.23657768]
[1727176350569,1.72106,2642.9,2642.8,1.23657768]
[1727176351452,0.77509,2642.9,2642.8,1.23657768]
[1727176352046,0.3784,2642.8,2642.7,1.48636453]
[1727176352251,0.7751,2642.9,2642.7,3.10122159]
[1727176352454,0.77509,2642.9,2642.8,1.23644706]
[1727176353351,1.72106,2642.9,2642.8,1.23644706]
[1727176356655,0.3784,2642.8,2642.7,0.37841]
[1727176357062,0.3784,2642.8,2642.7,1.61469052]
[1727176360062,0.3784,2642.8,2642.7,1.23628052]
[1727176360364,0.37843,2642.6,2642.5,1.48636453]
[1727176360565,0.37843,2642.6,2642.5,1.2361813]
[1727176360872,0.75772,2642.7,2642.5,1.2361813]
[1727176361063,0.75772,2642.7,2642.6,1.2361813]
[1727176361064,0.75773,2642.7,2642.6,1.2361813]
[1727176361560,0.75773,2642.7,2642.6,1.6146113]
[1727176361561,0.3793,2642.7,2642.6,1.6146113]
[1727176361767,0.3967,2642.9,2642.7,0.3784]
[1727176361961,0.77509,2642.9,2642.8,0.3784]
[1727176362159,0.77509,2642.9,2642.7,0.37841]
[1727176362363,0.77509,2642.9,2642.8,0.7771]
[1727176362562,0.77509,2642.9,2642.8,0.3987]
[1727176362866,0.77509,2642.9,2642.8,0.7771]
[1727176363258,0.77509,2642.9,2642.8,0.3987]
[1727176363765,0.77509,2642.9,2642.8,0.7682]
[1727176364267,0.77509,2642.9,2642.8,1.1466]
[1727176364471,0.77509,2642.9,2642.8,0.7682]
[1727176364769,0.77509,2642.9,2642.8,1.1466]
[1727176364967,2.25230382,2642.9,2642.8,0.7682]
[1727176365157,2.25230382,2642.9,2642.8,1.1466]
[1727176365959,2.25230382,2642.9,2642.8,0.7682]
[1727176366159,2.25230382,2642.9,2642.8,1.1466]
[1727176366758,1.87391382,2642.9,2642.8,1.1466]
[1727176366966,1.47721382,2642.9,2642.8,1.1466]
[1727176367364,1.85560382,2642.9,2642.8,1.1466]
[1727176367663,1.47721382,2642.9,2642.8,1.1466]
[1727176368365,1.47721382,2643.0,2642.9,0.37839]
[1727176368566,0.3821,2643.2,2643.1,0.37836]
[1727176368768,0.3821,2643.2,2643.1,1.60836]
[1727176368966,1.47823737,2643.2,2643.1,5.0132]
[1727176369171,1.47823737,2643.2,2643.1,5.39156]
[1727176369670,1.47823737,2643.3,2643.2,0.37834]
[1727176369876,1.47823737,2643.3,2643.2,1.11204]
[1727176370062,0.37832,2643.4,2643.3,0.37833]
[1727176370864,0.37833,2643.3,2643.2,0.7337]
[1727176371270,3.68910976,2643.6,2643.2,0.7337]
[1727176371467,0.37832,2643.4,2643.2,1.11204]
[1727176371673,0.37832,2643.4,2643.3,1.23633141]
[1727176374261,0.37832,2643.4,2643.3,1.61466141]
[1727176374470,0.37832,2643.4,2643.3,1.23633141]
[1727176375069,0.37832,2643.4,2643.3,1.61466141]
[1727176375774,0.37832,2643.4,2643.3,1.23633141]
[1727176376570,0.37832,2643.4,2643.3,1.61484934]
[1727176376977,2.25111062,2643.6,2643.4,0.37831]
[1727176377276,2.25111062,2643.6,2643.3,0.37832]
[1727176377672,1.47821062,2643.6,2643.2,2.22006453]
[1727176377877,0.37829,2643.6,2643.5,3.2078]
[1727176378178,0.37829,2643.6,2643.5,5.93075875]
[1727176378774,0.37829,2643.6,2643.5,3.5861]
[1727176379175,0.37827,2643.7,2643.6,0.37829]
[1727176379376,0.37827,2643.7,2643.6,0.76509]
[1727176379581,1.13037,2643.8,2643.6,1.13439]
[1727176379882,0.37827,2643.7,2643.6,1.13439]
[1727176380081,0.7521,2643.8,2643.6,0.7561]
[1727176380282,1.13036,2643.8,2643.6,0.7561]
[1727176380483,1.13036,2643.8,2643.7,0.37827]
[1727176380974,0.37827,2643.7,2643.6,1.13438]
[1727176381376,0.37829,2643.6,2643.5,3.2078]
[1727176382375,0.37829,2643.6,2643.5,3.5861]
[1727176385078,0.37828,2643.7,2643.6,0.37828]
[1727176385281,0.37828,2643.7,2643.6,0.75418]
[1727176385972,0.37828,2643.7,2643.6,0.3759]
[1727176388482,0.37828,2643.7,2643.6,0.75419]
[1727176388878,1.13036,2643.8,2643.7,0.37827]
[1727176390983,0.37827,2643.7,2643.6,1.14198]
[1727176392378,0.37827,2643.7,2643.6,0.3759]
[1727176392780,0.37829,2643.6,2643.5,3.5861]
[1727176392979,0.37829,2643.6,2643.5,3.2078]
[1727176393183,0.37829,2643.6,2643.5,3.5861]
[1727176393382,0.37829,2643.6,2643.5,3.2078]
[1727176393596,1.32401,2643.6,2643.5,3.2078]
[1727176394081,2.8015971,2643.6,2643.5,3.2078]
[1727176395594,7.5297171,2643.6,2643.5,3.2078]
[1727176395790,10.1897171,2643.6,2643.5,3.2078]
[1727176395985,8.71213,2643.6,2643.5,3.2078]
[1727176397689,0.37833,2643.3,2643.2,0.37834]
[1727176397887,0.37835,2643.2,2643.1,0.37835]
[1727176398683,0.37836,2643.1,2643.0,4.35166]
[1727176399193,0.37835,2643.2,2643.1,0.37835]
[1727176403099,0.37836,2643.1,2643.0,4.35167]
[1727176403288,1.85608896,2643.1,2643.0,4.35167]
[1727176403486,0.37836,2643.1,2643.0,3.9733]
[1727176404700,0.37836,2643.1,2643.0,4.35167]
[1727176404885,0.37836,2643.1,2643.0,3.9733]
[1727176405490,1.32426,2643.1,2643.0,3.9733]
[1727176406491,1.32426,2643.1,2643.0,0.7655]
[1727176407000,0.37836,2643.1,2643.0,0.7655]
[1727176407593,0.37836,2643.1,2643.0,1.14387]
[1727176410893,0.37835,2643.2,2643.1,0.37835]
[1727176411095,2.80895924,2643.3,2643.2,0.37834]
[1727176411096,0.37834,2643.3,2643.2,0.37834]
[1727176411986,0.37834,2643.3,2643.1,0.37835]
[1727176412187,0.37834,2643.2,2643.1,0.37835]
[1727176412391,0.37834,2643.3,2643.1,1.60268297]
[1727176412598,0.37834,2643.3,2643.2,1.22436857]
[1727176412996,1.85675924,2643.3,2643.2,1.22436857]
[1727176413197,0.37834,2643.2,2643.1,0.37835]
[1727176413502,0.37834,2643.2,2643.1,1.60281395]
[1727176414005,0.37834,2643.2,2643.1,1.22446395]
[1727176414389,0.37834,2643.2,2643.1,2.71082848]
[1727176414592,0.37834,2643.2,2643.1,2.71095727]
[1727176415195,0.37834,2643.2,2643.1,1.22459274]
[1727176416100,0.37834,2643.2,2643.0,1.14386]
[1727176417614,0.37835,2643.2,2643.0,1.14387]
[1727176418706,2.91627976,2643.4,2643.0,0.7655]
[1727176419007,0.37836,2643.2,2643.0,0.7655]
[1727176419506,0.37836,2643.1,2643.0,0.7655]
[1727176419893,1.97047976,2643.4,2643.0,4.5487]
[1727176420099,8.78417976,2643.1,2642.5,3.2078]
[1727176420299,0.7504,2643.3,2642.5,0.3626]
[1727176420300,3.98451,2642.6,2642.5,0.3626]
[1727176420508,1.97137179,2642.6,2641.9,4.69416453]
[1727176420709,0.37846,2642.4,2642.1,0.7277]
[1727176421008,2.35507179,2642.5,2642.2,0.3893]
[1727176421009,0.37847,2642.3,2642.2,0.3893]
[1727176421195,5.38697179,2642.5,2642.1,0.7277]
[1727176421506,0.37847,2642.3,2642.1,0.7277]
[1727176422406,1.47636233,2642.2,2642.1,0.7277]
[1727176424112,0.7556,2642.5,2642.1,1.95048644]
[1727176424113,0.37847,2642.3,2642.1,1.95048644]
[1727176424404,0.37847,2642.3,2642.1,0.7277]
[1727176424613,0.7556,2642.5,2642.1,0.7277]
[1727176424811,0.37846,2642.4,2642.1,0.7277]
[1727176425400,1.13406,2642.5,2642.1,0.7277]
[1727176425606,0.37846,2642.4,2642.2,0.3865]
[1727176428009,0.37847,2642.3,2642.2,0.3865]
[1727176428408,0.37847,2642.4,2642.2,0.3865]
[1727176428610,0.37846,2642.4,2642.2,0.3865]
[1727176428818,0.37847,2642.3,2642.2,0.3865]
[1727176432320,0.37847,2642.4,2642.2,0.76498]
[1727176432527,0.37847,2642.4,2642.2,0.76499]
[1727176438328,1.70173,2642.5,2642.2,0.76499]
[1727176438530,0.37847,2642.4,2642.2,0.76499]
[1727176439021,0.37847,2642.3,2642.2,0.76499]
[1727176441231,1.70173,2642.5,2642.0,0.9888002]
[1727176441232,0.3785,2642.1,2642.0,0.9888002]
[1727176441831,0.7762,2642.2,2642.0,1.3673202]
[1727176442036,0.3617,2642.1,2642.0,1.3673202]
[1727176442629,0.3617,2642.1,2642.0,5.1521202]
[1727176442833,0.37848,2642.3,2642.1,0.37849]
[1727176443027,0.37848,2642.3,2642.1,1.60849]
[1727176443227,0.37849,2642.2,2642.1,1.60849]
[1727176444429,0.37849,2642.2,2642.1,1.23]
[1727176444633,0.37849,2642.2,2642.1,1.6085]
[1727176444832,0.37849,2642.2,2642.1,1.23]
[1727176445032,0.37849,2642.2,2642.0,2.5973102]
[1727176446036,0.3785,2642.1,2642.0,2.2188002]
[1727176446228,0.3785,2642.1,2642.0,1.23]
[1727176446432,0.3785,2642.1,2642.0,1.60852]
[1727176446627,0.94619,2642.3,2642.0,2.45159049]
[1727176446828,0.94619,2642.3,2642.0,1.23]
[1727176446829,0.3785,2642.1,2642.0,1.23]
[1727176447032,0.37852,2642.0,2641.9,3.6039]
[1727176447229,0.76242,2642.0,2641.9,5.20405556]
[1727176447439,0.3839,2642.0,2641.9,8.98885556]
[1727176448434,0.3839,2642.0,2641.9,10.47522009]
[1727176448933,0.3839,2642.0,2641.9,5.20405556]
[1727176449440,0.3839,2642.0,2641.9,6.69042009]
[1727176450337,0.3839,2642.0,2641.9,10.47522009]
[1727176451526,0.3839,2642.0,2641.9,6.69042009]
[1727176451730,0.3839,2642.0,2641.9,6.69081623]
[1727176452742,0.3839,2642.0,2641.9,10.47561623]
[1727176453038,0.3839,2642.0,2641.9,6.69081623]
[1727176453431,0.76242,2642.0,2641.9,1.385641]
[1727176454234,0.76242,2642.0,2641.9,0.3961]
[1727176454439,0.3839,2642.0,2641.9,0.77463]
[1727176455139,0.76242,2642.0,2641.9,0.77463]
[1727176455738,0.3839,2642.0,2641.9,0.77463]
[1727176457749,0.76242,2642.0,2641.9,0.3961]
[1727176457935,0.76242,2642.0,2641.8,0.37854]
[1727176457936,0.37853,2641.9,2641.8,0.37854]
[1727176458244,0.37855,2641.8,2641.6,1.368111]
[1727176458851,0.37855,2641.8,2641.7,0.989541]
[1727176459144,0.37854,2641.8,2641.7,1.368091]
[1727176459535,0.37854,2641.8,2641.7,0.37855]
[1727176459738,1.23,2641.8,2641.6,1.389141]
[1727176459938,0.75676,2641.7,2641.6,1.389141]
[1727176460850,0.3782,2641.7,2641.6,1.767711]
[1727176461346,0.3782,2641.7,2641.6,2.00157342]
[1727176461542,0.3782,2641.7,2641.6,1.62300342]
[1727176461748,0.3782,2641.7,2641.6,3.4879574]
[1727176462048,0.75676,2641.7,2641.6,1.62327481]
[1727176462450,0.75676,2641.7,2641.6,1.22367481]
[1727176463048,0.3782,2641.7,2641.6,1.60224481]
[1727176463439,0.37855,2641.8,2641.7,0.37856]
[1727176463644,0.37855,2641.8,2641.7,3.45780168]
[1727176464042,0.37854,2641.9,2641.7,3.45780168]
[1727176464336,0.37854,2641.9,2641.8,2.71064168]
[1727176464535,0.37854,2641.9,2641.8,3.07544168]
[1727176466255,0.37854,2641.9,2641.8,1.58847481]
[1727176466656,0.37854,2641.9,2641.8,1.59052266]
[1727176467653,1.47636233,2642.3,2642.1,0.3785]
[1727176467849,0.37847,2642.3,2642.2,1.99452266]
[1727176468044,0.37847,2642.3,2642.2,3.48280197]
[1727176468243,1.47636233,2642.5,2642.2,11.70540197]
[1727176468446,1.47636233,2642.5,2642.4,1.23]
[1727176468447,0.37844,2642.5,2642.4,1.23]
[1727176468655,0.77534,2642.6,2642.4,1.22572266]
[1727176468849,0.77534,2642.6,2642.5,2.7138103]
[1727176469353,0.77534,2642.6,2642.5,0.99204919]
[1727176470245,0.37844,2642.5,2642.3,1.99737]
[1727176470549,1.47783851,2642.4,2642.3,1.99737]
[1727176470749,1.47783851,2642.4,2642.3,4.16917639]
[1727176470943,1.47783851,2642.4,2642.3,3.79070639]
[1727176471145,1.85629851,2642.4,2642.3,3.79070639]
[1727176471346,1.85629851,2642.4,2642.3,2.8441363]
[1727176471541,1.85629851,2642.4,2642.3,3.34832796]
[1727176471955,1.47783851,2642.4,2642.3,3.34832796]
[1727176472156,1.47783851,2642.4,2642.3,3.34833079]
[1727176472357,1.47783851,2642.4,2642.3,2.8441363]
[1727176472754,1.47783851,2642.4,2642.3,3.34830396]
[1727176473459,1.47783851,2642.4,2642.3,2.8441363]
[1727176473866,1.47783851,2642.4,2642.3,1.6141363]
[1727176474357,1.85629851,2642.4,2642.3,0.3889]
[1727176474756,1.47783851,2642.4,2642.3,0.3889]
[1727176474950,1.47749799,2642.4,2642.3,1.61403364]
[1727176475255,1.47749799,2642.4,2642.3,0.3889]
[1727176475458,0.37846,2642.4,2642.3,0.3889]
[1727176476055,1.85593779,2642.4,2642.3,1.61402615]
[1727176476259,1.47747779,2642.4,2642.3,1.61402615]
[1727176476470,0.37831,2643.5,2643.1,0.37836]
[1727176476760,0.3839,2643.4,2643.3,1.48724218]
[1727176476961,0.3839,2643.4,2643.3,3.10830698]
[1727176477155,0.3839,2643.4,2643.3,3.10820434]
[1727176477355,0.3839,2643.4,2643.3,0.396]
[1727176477556,0.3839,2643.4,2643.3,1.61213668]
[1727176478174,0.3839,2643.4,2643.3,2.84213668]
[1727176478358,0.98394596,2643.5,2643.4,0.37831]
[1727176478552,0.98394596,2643.6,2643.5,0.3783]
[1727176478760,0.98394596,2643.6,2643.5,1.59357067]
[1727176479359,1.35654596,2643.7,2643.5,0.3783]
[1727176479662,1.35654596,2643.7,2643.6,0.98934133]
[1727176480358,0.3726,2643.7,2643.5,0.98934133]
[1727176480565,1.35654596,2643.7,2643.5,0.98934133]
[1727176481462,1.35654596,2643.7,2643.5,0.3783]
[1727176481463,0.3726,2643.7,2643.5,0.3783]
[1727176481666,0.3726,2643.7,2643.4,1.36765133]
[1727176481967,0.3726,2643.7,2643.5,0.98934133]
[1727176482465,0.3726,2643.7,2643.4,1.36765133]
[1727176482861,0.3726,2643.7,2643.5,0.3783]
[1727176483660,0.3726,2643.7,2643.4,1.36765133]
[1727176483865,0.3726,2643.7,2643.5,0.3783]
[1727176484559,1.35654596,2643.7,2643.5,0.3783]
[1727176485259,0.3726,2643.7,2643.5,0.3783]
[1727176485658,1.35654596,2643.7,2643.5,0.3783]
[1727176486260,0.3726,2643.7,2643.5,0.3783]
[1727176486662,0.75087,2643.7,2643.4,0.37831]